Workbook

Sheet Sheet1
B2: Data by Year/Month
C3: 1 | D3: 2 | E3: 3 | F3: 4 | G3: 5 | H3: 6 | I3: 7 | J3: 8 | K3: 9 | L3: 10 | M3: 11 | N3: 12
B4: 2000 | C4: 157 | D4: 127 | E4: 136 | F4: 176 | G4: 263 | H4: 195 | I4: 284 | J4: 212 | K4: 197 | L4: 232 | M4: 262 | N4: 201
B5: 2001 | C5: 145 | D5: 147 | E5: 129 | F5: 267 | G5: 271 | H5: 284 | I5: 294 | J5: 196 | K5: 186 | L5: 208 | M5: 248 | N5: 228
B6: 2002 | C6: 135 | D6: 130 | E6: 159 | F6: 275 | G6: 215 | H6: 244 | I6: 250 | J6: 241 | K6: 211 | L6: 203 | M6: 229 | N6: 300
B7: 2003 | C7: 187 | D7: 152 | E7: 181 | F7: 222 | G7: 285 | H7: 360 | I7: 228 | J7: 280 | K7: 241 | L7: 241 | M7: 271 | N7: 237
B8: 2004 | C8: 178 | D8: 130 | E8: 167 | F8: 225 | G8: 261 | H8: 289 | I8: 357 | J8: 252 | K8: 211 | L8: 263 | M8: 343 | N8: 230
B9: 2005 | C9: 146 | D9: 146 | E9: 150 | F9: 295 | G9: 308 | H9: 291 | I9: 296 | J9: 242 | K9: 294 | L9: 235 | M9: 311 | N9: 298
B10: 2006 | C10: 171 | D10: 172 | E10: 210 | F10: 270 | G10: 376 | H10: 316 | I10: 270 | J10: 222 | K10: 280 | L10: 250 | M10: 299 | N10: 272
B11: 2007 | C11: 198 | D11: 203 | E11: 231 | F11: 282 | G11: 337 | H11: 385 | I11: 408 | J11: 259 | K11: 256 | L11: 326 | M11: 281 | N11: 386
B12: 2008 | C12: 218 | D12: 236 | E12: 238 | F12: 367 | G12: 334 | H12: 371 | I12: 348 | J12: 352 | K12: 278 | L12: 280 | M12: 386 | N12: 410
B13: 2009 | C13: 202 | D13: 176 | E13: 201 | F13: 335 | G13: 330 | H13: 432 | I13: 410 | J13: 297 | K13: 287 | L13: 241 | M13: 425 | N13: 346
B14: 2010 | C14: 188 | D14: 180 | E14: 237 | F14: 302 | G14: 427 | H14: 414 | I14: 389 | J14: 370 | K14: 247 | L14: 306 | M14: 514 | N14: 420
P19: PART 6. SEASONAL INDEX
A20: X labels | B20: Year | C20: Month | D20: X | E20: Y | F20: X * Y | G20: X * X | H20: X-Xbar | I20: X-Xbar SQD | J20: Y-Ybar | K20: (X-Xb)(Y-Yb) | L20: TREND | M20: Y/TREND | P20: Month | Q20: sum y/t | R20: ave y/t
A21: =MID(TEXT(B21,"####"),3,2)&"-"&TEXT(C21,"##") -> 00-1 | B21: 2000 | C21: 1 | D21: 1 | E21: 157 | F21: =D21*E21 -> 157 | G21: =D21*D21 -> 1 | H21: =D21-$D$155 -> -65.5 | I21: =H21*H21 -> 4290.25 | J21: =E21-$D$156 -> -105.0757576 | K21: =H21*J21 -> 6882.462121 | L21: =$H$160+D21*$H$159 -> 185.4513557 | M21: =E21/L21 -> 0.8465831886 | P21: 1 | Q21: =$M21+$M33+$M45+$M57+$M69+$M81+$M93+$M105+$M117 -> 6.399378948 | R21: =Q21/9 -> 0.7110421053
A22: =MID(TEXT(B22,"####"),3,2)&"-"&TEXT(C22,"##") -> 00-2 | B22: 2000 | C22: 2 | D22: 2 | E22: 127 | F22: =D22*E22 -> 254 | G22: =D22*D22 -> 4 | H22: =D22-$D$155 -> -64.5 | I22: =H22*H22 -> 4160.25 | J22: =E22-$D$156 -> -135.0757576 | K22: =H22*J22 -> 8712.386364 | L22: =$H$160+D22*$H$159 -> 186.6211939 | M22: =E22/L22 -> 0.6805229212 | P22: 2 | Q22: =$M22+$M34+$M46+$M58+$M70+$M82+$M94+$M106+$M118 -> 5.924218814 | R22: =Q22/9 -> 0.6582465349
A23: 00-3 | B23: 2000 | C23: 3 | D23: 3 | E23: 136 | F23: 408 | G23: 9 | H23: -63.5 | I23: 4032.25 | J23: -126.0757576 | K23: 8005.810606 | L23: 187.7910321 | M23: 0.7242092368 | P23: 3 | Q23: 6.525846661 | R23: 0.7250940735
A24: 00-4 | B24: 2000 | C24: 4 | D24: 4 | E24: 176 | F24: 704 | G24: 16 | H24: -62.5 | I24: 3906.25 | J24: -86.07575758 | K24: 5379.734848 | L24: 188.9608703 | M24: 0.9314097663 | P24: 4 | Q24: 9.71907708 | R24: 1.079897453
A25: 00-5 | B25: 2000 | C25: 5 | D25: 5 | E25: 263 | F25: 1315 | G25: 25 | H25: -61.5 | I25: 3782.25 | J25: 0.9242424242 | K25: -56.84090909 | L25: 190.1307085 | M25: 1.383258928 | P25: 5 | Q25: 10.80932367 | R25: 1.201035963
A26: 00-6 | B26: 2000 | C26: 6 | D26: 6 | E26: 195 | F26: 1170 | G26: 36 | H26: -60.5 | I26: 3660.25 | J26: -67.07575758 | K26: 4058.083333 | L26: 191.3005466 | M26: 1.019338436 | P26: 6 | Q26: 11.03616975 | R26: 1.226241083
A27: 00-7 | B27: 2000 | C27: 7 | D27: 7 | E27: 284 | F27: 1988 | G27: 49 | H27: -59.5 | I27: 3540.25 | J27: 21.92424242 | K27: -1304.492424 | L27: 192.4703848 | M27: 1.475551682 | P27: 7 | Q27: 11.08848965 | R27: 1.232054406
A28: 00-8 | B28: 2000 | C28: 8 | D28: 8 | E28: 212 | F28: 1696 | G28: 64 | H28: -58.5 | I28: 3422.25 | J28: -50.07575758 | K28: 2929.431818 | L28: 193.640223 | M28: 1.09481386 | P28: 8 | Q28: 9.076069112 | R28: 1.008452124
A29: 00-9 | B29: 2000 | C29: 9 | D29: 9 | E29: 197 | F29: 1773 | G29: 81 | H29: -57.5 | I29: 3306.25 | J29: -65.07575758 | K29: 3741.856061 | L29: 194.8100612 | M29: 1.011241405 | P29: 9 | Q29: 8.598049353 | R29: 0.955338817
A30: 00-10 | B30: 2000 | C30: 10 | D30: 10 | E30: 232 | F30: 2320 | G30: 100 | H30: -56.5 | I30: 3192.25 | J30: -30.07575758 | K30: 1699.280303 | L30: 195.9798994 | M30: 1.183794872 | P30: 10 | Q30: 8.926773628 | R30: 0.9918637365
A31: 00-11 | B31: 2000 | C31: 11 | D31: 11 | E31: 262 | F31: 2882 | G31: 121 | H31: -55.5 | I31: 3080.25 | J31: -0.07575757576 | K31: 4.204545455 | L31: 197.1497376 | M31: 1.328939126 | P31: 11 | Q31: 10.43125973 | R31: 1.159028859
A32: 00-12 | B32: 2000 | C32: 12 | D32: 12 | E32: 201 | F32: 2412 | G32: 144 | H32: -54.5 | I32: 2970.25 | J32: -61.07575758 | K32: 3328.628788 | L32: 198.3195758 | M32: 1.013515681 | P32: 12 | Q32: 9.99573969 | R32: 1.110637743
A33: 01-1 | B33: 2001 | C33: 1 | D33: 13 | E33: 145 | F33: 1885 | G33: 169 | H33: -53.5 | I33: 2862.25 | J33: -117.0757576 | K33: 6263.55303 | L33: 199.489414 | M33: 0.7268556114 | Q33: AVE SI | R33: =SUM(R21:R32)/12 -> 1.004911075
A34: 01-2 | B34: 2001 | C34: 2 | D34: 14 | E34: 147 | F34: 2058 | G34: 196 | H34: -52.5 | I34: 2756.25 | J34: -115.0757576 | K34: 6041.477273 | L34: 200.6592522 | M34: 0.7325852079
A35: 01-3 | B35: 2001 | C35: 3 | D35: 15 | E35: 129 | F35: 1935 | G35: 225 | H35: -51.5 | I35: 2652.25 | J35: -133.0757576 | K35: 6853.401515 | L35: 201.8290904 | M35: 0.6391546418 | P35: PART 7. Least Squares Forecast for 2011
A36: 01-4 | B36: 2001 | C36: 4 | D36: 16 | E36: 267 | F36: 4272 | G36: 256 | H36: -50.5 | I36: 2550.25 | J36: 4.924242424 | K36: -248.6742424 | L36: 202.9989286 | M36: 1.315277878 | P36: Month | Q36: X | R36: Trend | S36: Seasonalized
A37: 01-5 | B37: 2001 | C37: 5 | D37: 17 | E37: 271 | F37: 4607 | G37: 289 | H37: -49.5 | I37: 2450.25 | J37: 8.924242424 | K37: -441.75 | L37: 204.1687668 | M37: 1.327333285 | P37: 1 | Q37: 133 | R37: =184.28+1.169*Q37 -> 339.757 | S37: =R37*R21 -> 241.5815326
A38: 01-6 | B38: 2001 | C38: 6 | D38: 18 | E38: 284 | F38: 5112 | G38: 324 | H38: -48.5 | I38: 2352.25 | J38: 21.92424242 | K38: -1063.325758 | L38: 205.338605 | M38: 1.383081374 | P38: 2 | Q38: 134 | R38: =184.28+1.169*Q38 -> 340.926 | S38: =R38*R22 -> 224.4133582
A39: 01-7 | B39: 2001 | C39: 7 | D39: 19 | E39: 294 | F39: 5586 | G39: 361 | H39: -47.5 | I39: 2256.25 | J39: 31.92424242 | K39: -1516.401515 | L39: 206.5084432 | M39: 1.423670604 | P39: 3 | Q39: 135 | R39: 342.095 | S39: 248.0510571
A40: 01-8 | B40: 2001 | C40: 8 | D40: 20 | E40: 196 | F40: 3920 | G40: 400 | H40: -46.5 | I40: 2162.25 | J40: -66.07575758 | K40: 3072.522727 | L40: 207.6782814 | M40: 0.9437674401 | P40: 4 | Q40: 136 | R40: 343.264 | S40: 370.6899194
A41: 01-9 | B41: 2001 | C41: 9 | D41: 21 | E41: 186 | F41: 3906 | G41: 441 | H41: -45.5 | I41: 2070.25 | J41: -76.07575758 | K41: 3461.44697 | L41: 208.8481196 | M41: 0.8905993521 | P41: 5 | Q41: 137 | R41: 344.433 | S41: 413.67642
A42: 01-10 | B42: 2001 | C42: 10 | D42: 22 | E42: 208 | F42: 4576 | G42: 484 | H42: -44.5 | I42: 1980.25 | J42: -54.07575758 | K42: 2406.371212 | L42: 210.0179578 | M42: 0.9903914988 | P42: 6 | Q42: 138 | R42: 345.602 | S42: 423.7913708
A43: 01-11 | B43: 2001 | C43: 11 | D43: 23 | E43: 248 | F43: 5704 | G43: 529 | H43: -43.5 | I43: 1892.25 | J43: -14.07575758 | K43: 612.2954545 | L43: 211.187796 | M43: 1.174310281 | P43: 7 | Q43: 139 | R43: 346.771 | S43: 427.2407384
A44: 01-12 | B44: 2001 | C44: 12 | D44: 24 | E44: 228 | F44: 5472 | G44: 576 | H44: -42.5 | I44: 1806.25 | J44: -34.07575758 | K44: 1448.219697 | L44: 212.3576342 | M44: 1.073660483 | P44: 8 | Q44: 140 | R44: 347.94 | S44: 350.8808319
A45: 02-1 | B45: 2002 | C45: 1 | D45: 25 | E45: 135 | F45: 3375 | G45: 625 | H45: -41.5 | I45: 1722.25 | J45: -127.0757576 | K45: 5273.643939 | L45: 213.5274724 | M45: 0.6322371472 | P45: 9 | Q45: 141 | R45: 349.109 | S45: 333.5173791
A46: 02-2 | B46: 2002 | C46: 2 | D46: 26 | E46: 130 | F46: 3380 | G46: 676 | H46: -40.5 | I46: 1640.25 | J46: -132.0757576 | K46: 5349.068182 | L46: 214.6973106 | M46: 0.6055036257 | P46: 10 | Q46: 142 | R46: 350.278 | S46: 347.4280459
A47: 02-3 | B47: 2002 | C47: 3 | D47: 27 | E47: 159 | F47: 4293 | G47: 729 | H47: -39.5 | I47: 1560.25 | J47: -103.0757576 | K47: 4071.492424 | L47: 215.8671488 | M47: 0.7365641363 | P47: 11 | Q47: 143 | R47: 351.447 | S47: 407.3372153
A48: 02-4 | B48: 2002 | C48: 4 | D48: 28 | E48: 275 | F48: 7700 | G48: 784 | H48: -38.5 | I48: 1482.25 | J48: 12.92424242 | K48: -497.5833333 | L48: 217.036987 | M48: 1.267065139 | P48: 12 | Q48: 144 | R48: 352.616 | S48: 391.6286385
A49: 02-5 | B49: 2002 | C49: 5 | D49: 29 | E49: 215 | F49: 6235 | G49: 841 | H49: -37.5 | I49: 1406.25 | J49: -47.07575758 | K49: 1765.340909 | L49: 218.2068252 | M49: 0.9853037357
A50: 02-6 | B50: 2002 | C50: 6 | D50: 30 | E50: 244 | F50: 7320 | G50: 900 | H50: -36.5 | I50: 1332.25 | J50: -18.07575758 | K50: 659.7651515 | L50: 219.3766634 | M50: 1.112242279
A51: 02-7 | B51: 2002 | C51: 7 | D51: 31 | E51: 250 | F51: 7750 | G51: 961 | H51: -35.5 | I51: 1260.25 | J51: -12.07575758 | K51: 428.6893939 | L51: 220.5465016 | M51: 1.133547792 | P51: PART 8. Forecasting using EXCEL TREND
A52: 02-8 | B52: 2002 | C52: 8 | D52: 32 | E52: 241 | F52: 7712 | G52: 1024 | H52: -34.5 | I52: 1190.25 | J52: -21.07575758 | K52: 727.1136364 | L52: 221.7163398 | M52: 1.086974466
A53: 02-9 | B53: 2002 | C53: 9 | D53: 33 | E53: 211 | F53: 6963 | G53: 1089 | H53: -33.5 | I53: 1122.25 | J53: -51.07575758 | K53: 1711.037879 | L53: 222.886178 | M53: 0.946671534 | P53: Month | Q53: X | R53: TREND | S53: Seasonalized
A54: 02-10 | B54: 2002 | C54: 10 | D54: 34 | E54: 203 | F54: 6902 | G54: 1156 | H54: -32.5 | I54: 1056.25 | J54: -59.07575758 | K54: 1919.962121 | L54: 224.0560162 | M54: 0.9060234287 | P54: 1 | Q54: 133 | R54: =TREND($E$21:$E$152,$D$21:$D$152,Q54) -> 339.8699977 | S54: =R54*R21 -> 241.6618787
A55: 02-11 | B55: 2002 | C55: 11 | D55: 35 | E55: 229 | F55: 8015 | G55: 1225 | H55: -31.5 | I55: 992.25 | J55: -33.07575758 | K55: 1041.886364 | L55: 225.2258544 | M55: 1.01675716 | P55: 2 | Q55: 134 | R55: =TREND($E$21:$E$152,$D$21:$D$152,Q55) -> 341.0398359 | S55: =R55*R22 -> 224.4882902
A56: 02-12 | B56: 2002 | C56: 12 | D56: 36 | E56: 300 | F56: 10800 | G56: 1296 | H56: -30.5 | I56: 930.25 | J56: 37.92424242 | K56: -1156.689394 | L56: 226.3956926 | M56: 1.325113551 | P56: 3 | Q56: 135 | R56: 342.2096741 | S56: 248.1342066
A57: 03-1 | B57: 2003 | C57: 1 | D57: 37 | E57: 187 | F57: 6919 | G57: 1369 | H57: -29.5 | I57: 870.25 | J57: -75.07575758 | K57: 2214.734848 | L57: 227.5655308 | M57: 0.8217413216 | P57: 4 | Q57: 136 | R57: 343.3795123 | S57: 370.8146608
A58: 03-2 | B58: 2003 | C58: 2 | D58: 38 | E58: 152 | F58: 5776 | G58: 1444 | H58: -28.5 | I58: 812.25 | J58: -110.0757576 | K58: 3137.159091 | L58: 228.735369 | M58: 0.6645233778 | P58: 5 | Q58: 137 | R58: 344.5493505 | S58: 413.8161611
A59: 03-3 | B59: 2003 | C59: 3 | D59: 39 | E59: 181 | F59: 7059 | G59: 1521 | H59: -27.5 | I59: 756.25 | J59: -81.07575758 | K59: 2229.583333 | L59: 229.9052072 | M59: 0.7872809939 | P59: 6 | Q59: 138 | R59: 345.7191887 | S59: 423.9350724
A60: 03-4 | B60: 2003 | C60: 4 | D60: 40 | E60: 222 | F60: 8880 | G60: 1600 | H60: -26.5 | I60: 702.25 | J60: -40.07575758 | K60: 1062.007576 | L60: 231.0750454 | M60: 0.9607268481 | P60: 7 | Q60: 139 | R60: 346.8890269 | S60: 427.3861539
A61: 03-5 | B61: 2003 | C61: 5 | D61: 41 | E61: 285 | F61: 11685 | G61: 1681 | H61: -25.5 | I61: 650.25 | J61: 22.92424242 | K61: -584.5681818 | L61: 232.2448835 | M61: 1.227152976 | P61: 8 | Q61: 140 | R61: 348.0588651 | S61: 351.0007016
A62: 03-6 | B62: 2003 | C62: 6 | D62: 42 | E62: 360 | F62: 15120 | G62: 1764 | H62: -24.5 | I62: 600.25 | J62: 97.92424242 | K62: -2399.143939 | L62: 233.4147217 | M62: 1.54231917 | P62: 9 | Q62: 141 | R62: 349.2287033 | S62: 333.6317362
A63: 03-7 | B63: 2003 | C63: 7 | D63: 43 | E63: 228 | F63: 9804 | G63: 1849 | H63: -23.5 | I63: 552.25 | J63: -34.07575758 | K63: 800.780303 | L63: 234.5845599 | M63: 0.9719309747 | P63: 10 | Q63: 142 | R63: 350.3985415 | S63: 347.5476066
A64: 03-8 | B64: 2003 | C64: 8 | D64: 44 | E64: 280 | F64: 12320 | G64: 1936 | H64: -22.5 | I64: 506.25 | J64: 17.92424242 | K64: -403.2954545 | L64: 235.7543981 | M64: 1.187676676 | P64: 11 | Q64: 143 | R64: 351.5683797 | S64: 407.4778978
A65: 03-9 | B65: 2003 | C65: 9 | D65: 45 | E65: 241 | F65: 10845 | G65: 2025 | H65: -21.5 | I65: 462.25 | J65: -21.07575758 | K65: 453.1287879 | L65: 236.9242363 | M65: 1.017202814 | P65: 12 | Q65: 144 | R65: =TREND($E$21:$E$152,$D$21:$D$152,Q65) -> 352.7382179 | S65: 391.7643783
A66: 03-10 | B66: 2003 | C66: 10 | D66: 46 | E66: 241 | F66: 11086 | G66: 2116 | H66: -20.5 | I66: 420.25 | J66: -21.07575758 | K66: 432.0530303 | L66: 238.0940745 | M66: 1.012204947
A67: 03-11 | B67: 2003 | C67: 11 | D67: 47 | E67: 271 | F67: 12737 | G67: 2209 | H67: -19.5 | I67: 380.25 | J67: 8.924242424 | K67: -174.0227273 | L67: 239.2639127 | M67: 1.132640509
A68: 03-12 | B68: 2003 | C68: 12 | D68: 48 | E68: 237 | F68: 11376 | G68: 2304 | H68: -18.5 | I68: 342.25 | J68: -25.07575758 | K68: 463.9015152 | L68: 240.4337509 | M68: 0.9857185153
A69: 04-1 | B69: 2004 | C69: 1 | D69: 49 | E69: 178 | F69: 8722 | G69: 2401 | H69: -17.5 | I69: 306.25 | J69: -84.07575758 | K69: 1471.325758 | L69: 241.6035891 | M69: 0.7367440221
A70: 04-2 | B70: 2004 | C70: 2 | D70: 50 | E70: 130 | F70: 6500 | G70: 2500 | H70: -16.5 | I70: 272.25 | J70: -132.0757576 | K70: 2179.25 | L70: 242.7734273 | M70: 0.5354787031
A71: 04-3 | B71: 2004 | C71: 3 | D71: 51 | E71: 167 | F71: 8517 | G71: 2601 | H71: -15.5 | I71: 240.25 | J71: -95.07575758 | K71: 1473.674242 | L71: 243.9432655 | M71: 0.6845854082
A72: 04-4 | B72: 2004 | C72: 4 | D72: 52 | E72: 225 | F72: 11700 | G72: 2704 | H72: -14.5 | I72: 210.25 | J72: -37.07575758 | K72: 537.5984848 | L72: 245.1131037 | M72: 0.9179435803
A73: 04-5 | B73: 2004 | C73: 5 | D73: 53 | E73: 261 | F73: 13833 | G73: 2809 | H73: -13.5 | I73: 182.25 | J73: -1.075757576 | K73: 14.52272727 | L73: 246.2829419 | M73: 1.059756709
A74: 04-6 | B74: 2004 | C74: 6 | D74: 54 | E74: 289 | F74: 15606 | G74: 2916 | H74: -12.5 | I74: 156.25 | J74: 26.92424242 | K74: -336.5530303 | L74: 247.4527801 | M74: 1.167899588
A75: 04-7 | B75: 2004 | C75: 7 | D75: 55 | E75: 357 | F75: 19635 | G75: 3025 | H75: -11.5 | I75: 132.25 | J75: 94.92424242 | K75: -1091.628788 | L75: 248.6226183 | M75: 1.435911191
A76: 04-8 | B76: 2004 | C76: 8 | D76: 56 | E76: 252 | F76: 14112 | G76: 3136 | H76: -10.5 | I76: 110.25 | J76: -10.07575758 | K76: 105.7954545 | L76: 249.7924565 | M76: 1.008837511
A77: 04-9 | B77: 2004 | C77: 9 | D77: 57 | E77: 211 | F77: 12027 | G77: 3249 | H77: -9.5 | I77: 90.25 | J77: -51.07575758 | K77: 485.219697 | L77: 250.9622947 | M77: 0.84076375
A78: 04-10 | B78: 2004 | C78: 10 | D78: 58 | E78: 263 | F78: 15254 | G78: 3364 | H78: -8.5 | I78: 72.25 | J78: 0.9242424242 | K78: -7.856060606 | L78: 252.1321329 | M78: 1.043103856
A79: 04-11 | B79: 2004 | C79: 11 | D79: 59 | E79: 343 | F79: 20237 | G79: 3481 | H79: -7.5 | I79: 56.25 | J79: 80.92424242 | K79: -606.9318182 | L79: 253.3019711 | M79: 1.354115006
A80: 04-12 | B80: 2004 | C80: 12 | D80: 60 | E80: 230 | F80: 13800 | G80: 3600 | H80: -6.5 | I80: 42.25 | J80: -32.07575758 | K80: 208.4924242 | L80: 254.4718093 | M80: 0.9038329261
A81: 05-1 | B81: 2005 | C81: 1 | D81: 61 | E81: 146 | F81: 8906 | G81: 3721 | H81: -5.5 | I81: 30.25 | J81: -116.0757576 | K81: 638.4166667 | L81: 255.6416475 | M81: 0.5711119508
A82: 05-2 | B82: 2005 | C82: 2 | D82: 62 | E82: 146 | F82: 9052 | G82: 3844 | H82: -4.5 | I82: 20.25 | J82: -116.0757576 | K82: 522.3409091 | L82: 256.8114857 | M82: 0.5685103982
A83: 05-3 | B83: 2005 | C83: 3 | D83: 63 | E83: 150 | F83: 9450 | G83: 3969 | H83: -3.5 | I83: 12.25 | J83: -112.0757576 | K83: 392.2651515 | L83: 257.9813239 | M83: 0.581437438
A84: 05-4 | B84: 2005 | C84: 4 | D84: 64 | E84: 295 | F84: 18880 | G84: 4096 | H84: -2.5 | I84: 6.25 | J84: 32.92424242 | K84: -82.31060606 | L84: 259.1511621 | M84: 1.138331766
A85: 05-5 | B85: 2005 | C85: 5 | D85: 65 | E85: 308 | F85: 20020 | G85: 4225 | H85: -1.5 | I85: 2.25 | J85: 45.92424242 | K85: -68.88636364 | L85: 260.3210003 | M85: 1.183154642
A86: =MID(TEXT(B86,"####"),3,2)&"-"&TEXT(C86,"##") -> 05-6 | B86: 2005 | C86: 6 | D86: 66 | E86: 291 | F86: =D86*E86 -> 19206 | G86: =D86*D86 -> 4356 | H86: =D86-$D$155 -> -0.5 | I86: =H86*H86 -> 0.25 | J86: =E86-$D$156 -> 28.92424242 | K86: =H86*J86 -> -14.46212121 | L86: =$H$160+D86*$H$159 -> 261.4908385 | M86: =E86/L86 -> 1.112849696
A87: 05-7 | B87: 2005 | C87: 7 | D87: 67 | E87: 296 | F87: 19832 | G87: 4489 | H87: 0.5 | I87: 0.25 | J87: 33.92424242 | K87: 16.96212121 | L87: 262.6606767 | M87: 1.126929252
A88: 05-8 | B88: 2005 | C88: 8 | D88: 68 | E88: 242 | F88: 16456 | G88: 4624 | H88: 1.5 | I88: 2.25 | J88: -20.07575758 | K88: -30.11363636 | L88: 263.8305149 | M88: 0.9172555347
A89: 05-9 | B89: 2005 | C89: 9 | D89: 69 | E89: 294 | F89: 20286 | G89: 4761 | H89: 2.5 | I89: 6.25 | J89: 31.92424242 | K89: 79.81060606 | L89: 265.0003531 | M89: 1.109432484
A90: 05-10 | B90: 2005 | C90: 10 | D90: 70 | E90: 235 | F90: 16450 | G90: 4900 | H90: 3.5 | I90: 12.25 | J90: -27.07575758 | K90: -94.76515152 | L90: 266.1701913 | M90: 0.8828937564
A91: 05-11 | B91: 2005 | C91: 11 | D91: 71 | E91: 311 | F91: 22081 | G91: 5041 | H91: 4.5 | I91: 20.25 | J91: 48.92424242 | K91: 220.1590909 | L91: 267.3400295 | M91: 1.163312507
A92: 05-12 | B92: 2005 | C92: 12 | D92: 72 | E92: 298 | F92: 21456 | G92: 5184 | H92: 5.5 | I92: 30.25 | J92: 35.92424242 | K92: 197.5833333 | L92: 268.5098677 | M92: 1.109828859
A93: 06-1 | B93: 2006 | C93: 1 | D93: 73 | E93: 171 | F93: 12483 | G93: 5329 | H93: 6.5 | I93: 42.25 | J93: -91.07575758 | K93: -591.9924242 | L93: 269.6797059 | M93: 0.6340855329
A94: 06-2 | B94: 2006 | C94: 2 | D94: 74 | E94: 172 | F94: 12728 | G94: 5476 | H94: 7.5 | I94: 56.25 | J94: -90.07575758 | K94: -675.5681818 | L94: 270.8495441 | M94: 0.6350389128
A95: 06-3 | B95: 2006 | C95: 3 | D95: 75 | E95: 210 | F95: 15750 | G95: 5625 | H95: 8.5 | I95: 72.25 | J95: -52.07575758 | K95: -442.6439394 | L95: 272.0193823 | M95: 0.7720038119
A96: 06-4 | B96: 2006 | C96: 4 | D96: 76 | E96: 270 | F96: 20520 | G96: 5776 | H96: 9.5 | I96: 90.25 | J96: 7.924242424 | K96: 75.28030303 | L96: 273.1892204 | M96: 0.9883259653
A97: 06-5 | B97: 2006 | C97: 5 | D97: 77 | E97: 376 | F97: 28952 | G97: 5929 | H97: 10.5 | I97: 110.25 | J97: 113.9242424 | K97: 1196.204545 | L97: 274.3590586 | M97: 1.370466869
A98: 06-6 | B98: 2006 | C98: 6 | D98: 78 | E98: 316 | F98: 24648 | G98: 6084 | H98: 11.5 | I98: 132.25 | J98: 53.92424242 | K98: 620.1287879 | L98: 275.5288968 | M98: 1.146885149
A99: 06-7 | B99: 2006 | C99: 7 | D99: 79 | E99: 270 | F99: 21330 | G99: 6241 | H99: 12.5 | I99: 156.25 | J99: 7.924242424 | K99: 99.0530303 | L99: 276.698735 | M99: 0.9757905108
A100: 06-8 | B100: 2006 | C100: 8 | D100: 80 | E100: 222 | F100: 17760 | G100: 6400 | H100: 13.5 | I100: 182.25 | J100: -40.07575758 | K100: -541.0227273 | L100: 277.8685732 | M100: 0.7989388559
A101: 06-9 | B101: 2006 | C101: 9 | D101: 81 | E101: 280 | F101: 22680 | G101: 6561 | H101: 14.5 | I101: 210.25 | J101: 17.92424242 | K101: 259.9015152 | L101: 279.0384114 | M101: 1.00344608
A102: 06-10 | B102: 2006 | C102: 10 | D102: 82 | E102: 250 | F102: 20500 | G102: 6724 | H102: 15.5 | I102: 240.25 | J102: -12.07575758 | K102: -187.1742424 | L102: 280.2082496 | M102: 0.8921935751
A103: 06-11 | B103: 2006 | C103: 11 | D103: 83 | E103: 299 | F103: 24817 | G103: 6889 | H103: 16.5 | I103: 272.25 | J103: 36.92424242 | K103: 609.25 | L103: 281.3780878 | M103: 1.062627166
A104: 06-12 | B104: 2006 | C104: 12 | D104: 84 | E104: 272 | F104: 22848 | G104: 7056 | H104: 17.5 | I104: 306.25 | J104: 9.924242424 | K104: 173.6742424 | L104: 282.547926 | M104: 0.962668542
A105: 07-1 | B105: 2007 | C105: 1 | D105: 85 | E105: 198 | F105: 16830 | G105: 7225 | H105: 18.5 | I105: 342.25 | J105: -64.07575758 | K105: -1185.401515 | L105: 283.7177642 | M105: 0.69787664
A106: 07-2 | B106: 2007 | C106: 2 | D106: 86 | E106: 203 | F106: 17458 | G106: 7396 | H106: 19.5 | I106: 380.25 | J106: -59.07575758 | K106: -1151.977273 | L106: 284.8876024 | M106: 0.71256172
A107: 07-3 | B107: 2007 | C107: 3 | D107: 87 | E107: 231 | F107: 20097 | G107: 7569 | H107: 20.5 | I107: 420.25 | J107: -31.07575758 | K107: -637.0530303 | L107: 286.0574406 | M107: 0.8075301223
A108: 07-4 | B108: 2007 | C108: 4 | D108: 88 | E108: 282 | F108: 24816 | G108: 7744 | H108: 21.5 | I108: 462.25 | J108: 19.92424242 | K108: 428.3712121 | L108: 287.2272788 | M108: 0.9818008971
A109: 07-5 | B109: 2007 | C109: 5 | D109: 89 | E109: 337 | F109: 29993 | G109: 7921 | H109: 22.5 | I109: 506.25 | J109: 74.92424242 | K109: 1685.795455 | L109: 288.397117 | M109: 1.168527631
A110: 07-6 | B110: 2007 | C110: 6 | D110: 90 | E110: 385 | F110: 34650 | G110: 8100 | H110: 23.5 | I110: 552.25 | J110: 122.9242424 | K110: 2888.719697 | L110: 289.5669552 | M110: 1.3295716
A111: 07-7 | B111: 2007 | C111: 7 | D111: 91 | E111: 408 | F111: 37128 | G111: 8281 | H111: 24.5 | I111: 600.25 | J111: 145.9242424 | K111: 3575.143939 | L111: 290.7367934 | M111: 1.403331155
A112: 07-8 | B112: 2007 | C112: 8 | D112: 92 | E112: 259 | F112: 23828 | G112: 8464 | H112: 25.5 | I112: 650.25 | J112: -3.075757576 | K112: -78.43181818 | L112: 291.9066316 | M112: 0.8872700102
A113: 07-9 | B113: 2007 | C113: 9 | D113: 93 | E113: 256 | F113: 23808 | G113: 8649 | H113: 26.5 | I113: 702.25 | J113: -6.075757576 | K113: -161.0075758 | L113: 293.0764698 | M113: 0.8734921646
A114: 07-10 | B114: 2007 | C114: 10 | D114: 94 | E114: 326 | F114: 30644 | G114: 8836 | H114: 27.5 | I114: 756.25 | J114: 63.92424242 | K114: 1757.916667 | L114: 294.246308 | M114: 1.107915346
A115: 07-11 | B115: 2007 | C115: 11 | D115: 95 | E115: 281 | F115: 26695 | G115: 9025 | H115: 28.5 | I115: 812.25 | J115: 18.92424242 | K115: 539.3409091 | L115: 295.4161462 | M115: 0.9512005475
A116: 07-12 | B116: 2007 | C116: 12 | D116: 96 | E116: 386 | F116: 37056 | G116: 9216 | H116: 29.5 | I116: 870.25 | J116: 123.9242424 | K116: 3655.765152 | L116: 296.5859844 | M116: 1.301477549
A117: 08-1 | B117: 2008 | C117: 1 | D117: 97 | E117: 218 | F117: 21146 | G117: 9409 | H117: 30.5 | I117: 930.25 | J117: -44.07575758 | K117: -1344.310606 | L117: 297.7558226 | M117: 0.7321435333
A118: 08-2 | B118: 2008 | C118: 2 | D118: 98 | E118: 236 | F118: 23128 | G118: 9604 | H118: 31.5 | I118: 992.25 | J118: -26.07575758 | K118: -821.3863636 | L118: 298.9256608 | M118: 0.7894939477
A119: 08-3 | B119: 2008 | C119: 3 | D119: 99 | E119: 238 | F119: 23562 | G119: 9801 | H119: 32.5 | I119: 1056.25 | J119: -24.07575758 | K119: -782.4621212 | L119: 300.095499 | M119: 0.7930808719
A120: 08-4 | B120: 2008 | C120: 4 | D120: 100 | E120: 367 | F120: 36700 | G120: 10000 | H120: 33.5 | I120: 1122.25 | J120: 104.9242424 | K120: 3514.962121 | L120: 301.2653372 | M120: 1.218195241
A121: 08-5 | B121: 2008 | C121: 5 | D121: 101 | E121: 334 | F121: 33734 | G121: 10201 | H121: 34.5 | I121: 1190.25 | J121: 71.92424242 | K121: 2481.386364 | L121: 302.4351754 | M121: 1.104368894
A122: 08-6 | B122: 2008 | C122: 6 | D122: 102 | E122: 371 | F122: 37842 | G122: 10404 | H122: 35.5 | I122: 1260.25 | J122: 108.9242424 | K122: 3866.810606 | L122: 303.6050136 | M122: 1.221982456
A123: 08-7 | B123: 2008 | C123: 7 | D123: 103 | E123: 348 | F123: 35844 | G123: 10609 | H123: 36.5 | I123: 1332.25 | J123: 85.92424242 | K123: 3136.234848 | L123: 304.7748518 | M123: 1.141826492
A124: 08-8 | B124: 2008 | C124: 8 | D124: 104 | E124: 352 | F124: 36608 | G124: 10816 | H124: 37.5 | I124: 1406.25 | J124: 89.92424242 | K124: 3372.159091 | L124: 305.94469 | M124: 1.150534759
A125: 08-9 | B125: 2008 | C125: 9 | D125: 105 | E125: 278 | F125: 29190 | G125: 11025 | H125: 38.5 | I125: 1482.25 | J125: 15.92424242 | K125: 613.0833333 | L125: 307.1145282 | M125: 0.9051997692
A126: 08-10 | B126: 2008 | C126: 10 | D126: 106 | E126: 280 | F126: 29680 | G126: 11236 | H126: 39.5 | I126: 1560.25 | J126: 17.92424242 | K126: 708.0075758 | L126: 308.2843664 | M126: 0.9082523493
A127: 08-11 | B127: 2008 | C127: 11 | D127: 107 | E127: 386 | F127: 41302 | G127: 11449 | H127: 40.5 | I127: 1640.25 | J127: 123.9242424 | K127: 5018.931818 | L127: 309.4542046 | M127: 1.247357426
A128: 08-12 | B128: 2008 | C128: 12 | D128: 108 | E128: 410 | F128: 44280 | G128: 11664 | H128: 41.5 | I128: 1722.25 | J128: 147.9242424 | K128: 6138.856061 | L128: 310.6240428 | M128: 1.319923585
A129: 09-1 | B129: 2009 | C129: 1 | D129: 109 | E129: 202 | F129: 22018 | G129: 11881 | H129: 42.5 | I129: 1806.25 | J129: -60.07575758 | K129: -2553.219697 | L129: 311.793881 | M129: 0.6478639009
A130: 09-2 | B130: 2009 | C130: 2 | D130: 110 | E130: 176 | F130: 19360 | G130: 12100 | H130: 43.5 | I130: 1892.25 | J130: -86.07575758 | K130: -3744.295455 | L130: 312.9637192 | M130: 0.5623655051
A131: 09-3 | B131: 2009 | C131: 3 | D131: 111 | E131: 201 | F131: 22311 | G131: 12321 | H131: 44.5 | I131: 1980.25 | J131: -61.07575758 | K131: -2717.871212 | L131: 314.1335573 | M131: 0.6398552313
A132: 09-4 | B132: 2009 | C132: 4 | D132: 112 | E132: 335 | F132: 37520 | G132: 12544 | H132: 45.5 | I132: 2070.25 | J132: 72.92424242 | K132: 3318.05303 | L132: 315.3033955 | M132: 1.062468736
A133: 09-5 | B133: 2009 | C133: 5 | D133: 113 | E133: 330 | F133: 37290 | G133: 12769 | H133: 46.5 | I133: 2162.25 | J133: 67.92424242 | K133: 3158.477273 | L133: 316.4732337 | M133: 1.042742213
A134: 09-6 | B134: 2009 | C134: 6 | D134: 114 | E134: 432 | F134: 49248 | G134: 12996 | H134: 47.5 | I134: 2256.25 | J134: 169.9242424 | K134: 8071.401515 | L134: 317.6430719 | M134: 1.36001707
A135: 09-7 | B135: 2009 | C135: 7 | D135: 115 | E135: 410 | F135: 47150 | G135: 13225 | H135: 48.5 | I135: 2352.25 | J135: 147.9242424 | K135: 7174.325758 | L135: 318.8129101 | M135: 1.286020694
A136: 09-8 | B136: 2009 | C136: 8 | D136: 116 | E136: 297 | F136: 34452 | G136: 13456 | H136: 49.5 | I136: 2450.25 | J136: 34.92424242 | K136: 1728.75 | L136: 319.9827483 | M136: 0.9281750393
A137: 09-9 | B137: 2009 | C137: 9 | D137: 117 | E137: 287 | F137: 33579 | G137: 13689 | H137: 50.5 | I137: 2550.25 | J137: 24.92424242 | K137: 1258.674242 | L137: 321.1525865 | M137: 0.8936561997
A138: 09-10 | B138: 2009 | C138: 10 | D138: 118 | E138: 241 | F138: 28438 | G138: 13924 | H138: 51.5 | I138: 2652.25 | J138: -21.07575758 | K138: -1085.401515 | L138: 322.3224247 | M138: 0.7476985202
A139: 09-11 | B139: 2009 | C139: 11 | D139: 119 | E139: 425 | F139: 50575 | G139: 14161 | H139: 52.5 | I139: 2756.25 | J139: 162.9242424 | K139: 8553.522727 | L139: 323.4922629 | M139: 1.313787218
A140: 09-12 | B140: 2009 | C140: 12 | D140: 120 | E140: 346 | F140: 41520 | G140: 14400 | H140: 53.5 | I140: 2862.25 | J140: 83.92424242 | K140: 4489.94697 | L140: 324.6621011 | M140: 1.065723405
A141: 10-1 | B141: 2010 | C141: 1 | D141: 121 | E141: 188 | F141: 22748 | G141: 14641 | H141: 54.5 | I141: 2970.25 | J141: -74.07575758 | K141: -4037.128788 | L141: 325.8319393 | M141: 0.5769845657
A142: 10-2 | B142: 2010 | C142: 2 | D142: 122 | E142: 180 | F142: 21960 | G142: 14884 | H142: 55.5 | I142: 3080.25 | J142: -82.07575758 | K142: -4555.204545 | L142: 327.0017775 | M142: 0.5504557234
A143: 10-3 | B143: 2010 | C143: 3 | D143: 123 | E143: 237 | F143: 29151 | G143: 15129 | H143: 56.5 | I143: 3192.25 | J143: -25.07575758 | K143: -1416.780303 | L143: 328.1716157 | M143: 0.7221831159
A144: 10-4 | B144: 2010 | C144: 4 | D144: 124 | E144: 302 | F144: 37448 | G144: 15376 | H144: 57.5 | I144: 3306.25 | J144: 39.92424242 | K144: 2295.643939 | L144: 329.3414539 | M144: 0.916981438
A145: 10-5 | B145: 2010 | C145: 5 | D145: 125 | E145: 427 | F145: 53375 | G145: 15625 | H145: 58.5 | I145: 3422.25 | J145: 164.9242424 | K145: 9648.068182 | L145: 330.5112921 | M145: 1.291937704
A146: 10-6 | B146: 2010 | C146: 6 | D146: 126 | E146: 414 | F146: 52164 | G146: 15876 | H146: 59.5 | I146: 3540.25 | J146: 151.9242424 | K146: 9039.492424 | L146: 331.6811303 | M146: 1.248186774
A147: 10-7 | B147: 2010 | C147: 7 | D147: 127 | E147: 389 | F147: 49403 | G147: 16129 | H147: 60.5 | I147: 3660.25 | J147: 126.9242424 | K147: 7678.916667 | L147: 332.8509685 | M147: 1.168691207
A148: 10-8 | B148: 2010 | C148: 8 | D148: 128 | E148: 370 | F148: 47360 | G148: 16384 | H148: 61.5 | I148: 3782.25 | J148: 107.9242424 | K148: 6637.340909 | L148: 334.0208067 | M148: 1.107715425
A149: 10-9 | B149: 2010 | C149: 9 | D149: 129 | E149: 247 | F149: 31863 | G149: 16641 | H149: 62.5 | I149: 3906.25 | J149: -15.07575758 | K149: -942.2348485 | L149: 335.1906449 | M149: 0.7368940743
A150: =MID(TEXT(B150,"####"),3,2)&"-"&TEXT(C150,"##") -> 10-10 | B150: 2010 | C150: 10 | D150: 130 | E150: 306 | F150: =D150*E150 -> 39780 | G150: =D150*D150 -> 16900 | H150: =D150-$D$155 -> 63.5 | I150: =H150*H150 -> 4032.25 | J150: =E150-$D$156 -> 43.92424242 | K150: =H150*J150 -> 2789.189394 | L150: =$H$160+D150*$H$159 -> 336.3604831 | M150: =E150/L150 -> 0.9097382581
A151: 10-11 | B151: 2010 | C151: 11 | D151: 131 | E151: 514 | F151: 67334 | G151: 17161 | H151: 64.5 | I151: 4160.25 | J151: 251.9242424 | K151: 16249.11364 | L151: 337.5303213 | M151: 1.522826151
A152: 10-12 | B152: 2010 | C152: 12 | D152: 132 | E152: 420 | F152: 55440 | G152: 17424 | H152: 65.5 | I152: 4290.25 | J152: 157.9242424 | K152: 10344.03788 | L152: 338.7001595 | M152: 1.240034846
B153: PART 1. | C153: sumX | D153: =SUM(D21:D152) -> 8778
B154: COMP. | C154: sumY | D154: =SUM(E21:E152) -> 34594 | F154: PART 2. | G154: slope: | H154: (X-Xb)(Y-Yb) | I154: div by | J154: X-Xbar SQD
B155: FORM | C155: aveX | D155: =AVERAGE(D21:D152) -> 66.5 | F155: TRAD. | H155: =SUM(K21:K152) -> 224203 | J155: =SUM(I21:I152) -> 191653 | K155: =H155/J155 -> 1.169838197
C156: aveY | D156: =AVERAGE(E21:E152) -> 262.0757576 | F156: FORM
C157: sumXY | D157: =SUM(F21:F152) -> 2524704 | G157: intercept: | H157: ybar | I157: - | J157: M * Xbar | K157: =D156-K155*D155 -> 184.2815175
C158: sumX2 | D158: =SUM(G21:G152) -> 775390 | F158: PART 5. SLOPE and INTERCEPT
C159: n | D159: =COUNT(E21:E152) -> 132 | F159: Excel slope | H159: =SLOPE(E21:E152,D21:D152) -> 1.169838197
B160: slope numerator | D160: =( D159*D157-D153*D154) -> 29594796 | F160: Excel Intercept | H160: =INTERCEPT(E21:E152,D21:D152) -> 184.2815175
B161: slope denominator | D161: =(D159*D158-D153*D153) -> 25298196
C162: slope | D162: =D160/D161 -> 1.169838197
C163: intercept | D163: =(D154-D162*D153)/D159 -> 184.2815175
B165: Part 3. LINEST (full)
C166: slope --> | D166: =INDEX(LINEST(E21:E152,D21:D152,,TRUE),1,1) -> 1.169838197 | E166: =INDEX(LINEST(E21:E152,D21:D152,,TRUE),1,2) -> 184.2815175 | F166: <-- intercept
D167: =INDEX(LINEST(E21:E152,D21:D152,,TRUE),2,1) -> 0.1494524713 | E167: =INDEX(LINEST(E21:E152,D21:D152,,TRUE),2,2) -> 11.45450255
D168: =INDEX(LINEST(E21:E152,D21:D152,,TRUE),3,1) -> 0.3203312677 | E168: =INDEX(LINEST(E21:E152,D21:D152,,TRUE),3,2) -> 65.42758822
D169: =INDEX(LINEST(E21:E152,D21:D152,,TRUE),4,1) -> 61.26964919 | E169: =INDEX(LINEST(E21:E152,D21:D152,,TRUE),4,2) -> 130 | F169: <--d.f
D170: =INDEX(LINEST(E21:E152,D21:D152,,TRUE),5,1) -> 262281.2333 | E170: =INDEX(LINEST(E21:E152,D21:D152,,TRUE),5,2) -> 556500.0091
B171: PART 4. LINEST Direct
C172: slope | D172: =INDEX(LINEST(E21:E152,D21:D152,,FALSE),1) -> 1.169838197
C173: int | D173: =INDEX(LINEST(E21:E152,D21:D152,,FALSE),2) -> 184.2815175
D189: Graph from VBA
D190: DATA VALUES TO SET:
D191: ACTUAL Y AND TREND (using VBA)
D192: TIME
D193: Y VALUES

Sheet Sheet2

Sheet Sheet3
